fUST/lending_fUST_20250722
["ID","MTS","AMOUNT","RATE_DAILY","PERIOD"]
[373887245,1753139447836,-151.0,0.00018419,2]
[373887248,1753139447851,-794.14,0.00018419,2]
[373887250,1753139447865,-460.0,0.00018419,2]
[373887253,1753139447879,-151.0,0.00018419,2]
[373887255,1753139447893,-460.0,0.00018419,2]
[373887257,1753139447906,-151.0,0.00018419,2]
[373887260,1753139447920,-151.0,0.00018419,2]
[373887262,1753139447934,-460.0,0.00018419,2]
[373887265,1753139447947,-460.0,0.00018419,2]
[373887267,1753139447961,-260.385876,0.00018419,2]
[373887270,1753139447974,-956.21,0.00018419,2]
[373887272,1753139447988,-460.0,0.00018419,2]
[373887275,1753139448001,-460.0,0.00018419,2]
[373887277,1753139448015,-460.0,0.00018419,2]
[373887279,1753139448028,-460.0,0.00018419,2]
[373887282,1753139448041,-460.0,0.00018419,2]
[373887284,1753139448055,-460.0,0.00018419,2]
[373887287,1753139448069,-151.0,0.00018419,2]
[373887289,1753139448082,-151.0,0.00018419,2]
[373887291,1753139448095,-151.0,0.00018419,2]
[373887294,1753139448108,-151.0,0.00018419,2]
[373887296,1753139448121,-460.0,0.0001842,2]
[373887299,1753139448135,-460.0,0.0001842,2]
[373887301,1753139448149,-151.0,0.0001842,2]
[373887304,1753139448163,-460.0,0.0001842,2]
[373887306,1753139448177,-460.0,0.0001842,2]
[373887322,1753139448279,-460.0,0.0001842,2]
[373887325,1753139448333,-460.0,0.0001842,2]
[373887327,1753139448344,-460.0,0.0001842,2]
[373887329,1753139448353,-460.0,0.0001842,2]
[373887331,1753139448363,-151.0,0.0001842,2]
[373887333,1753139448372,-157.752632,0.0001842,2]
[373887335,1753139448382,-151.0,0.0001842,2]
[373887337,1753139448392,-151.0,0.0001842,2]
[373887339,1753139448401,-460.0,0.0001842,2]
[373887341,1753139448410,-151.0,0.0001842,2]
[373887343,1753139448420,-151.0,0.0001842,2]
[373887345,1753139448429,-460.0,0.0001842,2]
[373887347,1753139448439,-151.0,0.0001842,2]
[373887349,1753139448448,-5403.16,0.0001842,2]
[373887351,1753139448457,-151.0,0.0001842,2]
[373887353,1753139448466,-1332.35,0.0001842,2]
[373887355,1753139448476,-460.0,0.0001842,2]
[373887357,1753139448485,-1000.0,0.00018421,2]
[373887359,1753139448494,-952.85815076,0.00018421,2]
[373887361,1753139448504,-663.48905212,0.00018421,2]
[373887363,1753139448513,-1000.0,0.00018421,2]
[373887365,1753139448522,-1000.0,0.00018421,2]
[373887367,1753139448531,-1000.0,0.00018421,2]
[373887369,1753139448541,-588.28,0.00018436,2]
[373887371,1753139448550,-1928.03,0.00018437,2]
[373887373,1753139448559,-1724.96,0.00018437,2]
[373887375,1753139448568,-935.76,0.00018437,2]
[373887377,1753139448578,-1567.89,0.00018437,2]
[373887379,1753139448587,-3077.94,0.00018437,2]
[373887381,1753139448596,-151.0,0.00018438,2]
[373887383,1753139448606,-151.0,0.00018438,2]
[373887385,1753139448615,-151.0,0.00018438,2]
[373887387,1753139448625,-151.0,0.00018438,2]
[373887389,1753139448634,-151.0,0.00018438,2]
[373887391,1753139448644,-151.0,0.00018438,2]
[373887393,1753139448653,-239.491584,0.00018438,2]
[373887395,1753139448662,-151.0,0.00018438,2]
[373887397,1753139448672,-151.0,0.00018438,2]
[373887399,1753139448682,-151.0,0.00018438,2]
[373887401,1753139448691,-151.0,0.00018438,2]
[373887403,1753139448701,-151.0,0.00018438,2]
[373887405,1753139448710,-287.421496,0.00018438,2]
[373887407,1753139448720,-287.421496,0.00018438,2]
[373887409,1753139448729,-151.0,0.00018438,2]
[373887411,1753139448738,-2419.85,0.00018438,2]
[373887413,1753139448747,-594.18,0.00018438,2]
[373887415,1753139448757,-460.0,0.00018438,2]
[373887417,1753139448766,-1300.4,0.00018438,2]
[373887419,1753139448775,-151.0,0.00018439,2]
[373887421,1753139448785,-1869.06,0.00018439,2]
[373887423,1753139448794,-460.0,0.00018439,2]
[373887425,1753139448803,-460.0,0.00018439,2]
[373887427,1753139448813,-151.0,0.0001844,2]
[373887429,1753139448829,-151.0,0.00018441,2]
[373887431,1753139448838,-151.0,0.00018442,2]
[373887433,1753139448847,-151.818264,0.00018442,2]
[373887435,1753139448858,-151.0,0.00018442,2]
[373887438,1753139448868,-151.0,0.00018442,2]
[373887439,1753139448877,-151.0,0.00018442,2]
[373887442,1753139448887,-151.0,0.00018442,2]
[373887444,1753139448898,-151.0,0.00018442,2]
[373887446,1753139448909,-151.0,0.00018442,2]
[373887448,1753139448918,-151.0,0.00018442,2]
[373887450,1753139448928,-151.0,0.00018442,2]
[373887452,1753139448937,-151.0,0.00018443,2]
[373887454,1753139448946,-1531.71617545,0.00018454,2]
[373887456,1753139448955,-5484.0,0.00018494,2]
[373887458,1753139448965,-151.0,0.000185,2]
[373887460,1753139448974,-200.0,0.000185,2]
[373887462,1753139448983,-500.0,0.0001852,2]
[373887464,1753139448992,-25000.0,0.00018573,2]
[373887466,1753139449002,-962.0,0.0001858,2]
[373887468,1753139449011,-460.0,0.0001859,2]
[373887470,1753139449020,-151.0,0.000186,2]
[373887472,1753139449029,-151.0,0.000186,2]
[373887474,1753139449038,-5484.0,0.00018624,2]
[373887476,1753139449049,-7714.86564251,0.00018624,2]
[373887478,1753139449058,-151.0,0.00018629,2]
[373887480,1753139449067,-151.0,0.00018629,2]
[373887482,1753139449076,-151.0,0.00018629,2]
[373887484,1753139449086,-151.0,0.00018629,2]
[373887486,1753139449095,-151.0,0.00018629,2]
[373887488,1753139449104,-962.0,0.00018634,2]
[373887490,1753139449113,-5484.0,0.00018658,2]
[373887492,1753139449123,-3390.2,0.0001869,2]
[373887494,1753139449132,-677.12,0.0001869,2]
[373887496,1753139449142,-460.0,0.0001869,2]
[373887498,1753139449151,-460.0,0.0001869,2]
[373887500,1753139449161,-2776.99,0.0001869,2]
[373887502,1753139449171,-460.0,0.0001869,2]
[373887504,1753139449180,-460.0,0.0001869,2]
[373887506,1753139449190,-1434.52,0.0001869,2]
[373887508,1753139449200,-460.0,0.0001869,2]
[373887510,1753139449209,-509.94,0.0001869,2]
[373887512,1753139449218,-460.0,0.0001869,2]
[373887514,1753139449227,-856.14,0.0001869,2]
[373887516,1753139449236,-151.0,0.0001869,2]
[373887518,1753139449245,-246.273654,0.0001869,2]
[373887520,1753139449254,-460.0,0.00018691,2]
[373887522,1753139449263,-460.0,0.00018691,2]
[373887524,1753139449272,-460.0,0.00018691,2]
[373887526,1753139449282,-460.0,0.00018691,2]
[373887528,1753139449291,-460.0,0.00018691,2]
[373887530,1753139449301,-460.0,0.00018691,2]
[373887532,1753139449310,-460.0,0.00018691,2]
[373887534,1753139449319,-460.0,0.00018691,2]
[373887536,1753139449328,-460.0,0.00018691,2]
[373887538,1753139449338,-460.0,0.00018691,2]
[373887540,1753139449347,-5053.42,0.00018691,2]
[373887542,1753139449357,-458.00153157,0.00018691,2]
[373887544,1753139449366,-460.0,0.00018691,2]
[373887546,1753139449376,-460.0,0.00018691,2]
[373887548,1753139449385,-460.0,0.00018691,2]
[373887550,1753139449394,-460.0,0.00018691,2]
[373887552,1753139449404,-460.0,0.00018691,2]
[373887554,1753139449413,-460.0,0.00018691,2]
[373887556,1753139449423,-354.77718397,0.00018691,2]
[373887558,1753139449433,-608.40493682,0.00018691,2]
[373887560,1753139449443,-716.6,0.00018691,2]
[373887562,1753139449452,-460.0,0.00018691,2]
[373887564,1753139449461,-460.0,0.00018691,2]
[373887566,1753139449471,-460.0,0.00018691,2]
[373887568,1753139449481,-460.0,0.00018691,2]
[373887571,1753139449491,-475.97,0.00018691,2]
[373887573,1753139449500,-460.0,0.00018691,2]
[373887575,1753139449510,-2571.87,0.00018691,2]
[373887577,1753139449519,-153.526373,0.00018691,2]
[373887579,1753139449529,-735.27,0.00018691,2]
[373887581,1753139449538,-460.0,0.00018691,2]
[373887583,1753139449546,-982.68,0.00018691,2]
[373887585,1753139449556,-460.0,0.00018691,2]
[373887587,1753139449565,-460.0,0.00018691,2]
[373887589,1753139449575,-460.0,0.00018691,2]
[373887591,1753139449584,-460.0,0.00018691,2]
[373887592,1753139449593,-460.0,0.00018691,2]
[373887595,1753139449603,-811.79,0.00018691,2]
[373887597,1753139449613,-773.27,0.00018691,2]
[373887599,1753139449622,-505.34,0.00018691,2]
[373887601,1753139449632,-460.0,0.00018691,2]
[373887603,1753139449642,-460.0,0.00018691,2]
[373887605,1753139449652,-460.0,0.00018692,2]
[373887607,1753139449661,-460.0,0.00018692,2]
[373887609,1753139449670,-460.0,0.00018692,2]
[373887611,1753139449680,-460.0,0.00018692,2]
[373887613,1753139449689,-460.0,0.00018692,2]
[373887615,1753139449698,-460.0,0.00018692,2]
[373887617,1753139449707,-460.0,0.00018692,2]
[373887619,1753139449716,-460.0,0.00018692,2]
[373887621,1753139449726,-694.46,0.00018692,2]
[373887623,1753139449735,-641.97,0.00018692,2]
[373887625,1753139449744,-1451.97,0.00018692,2]
[373887627,1753139449754,-460.0,0.00018692,2]
[373887629,1753139449763,-460.0,0.00018692,2]
[373887631,1753139449772,-472.94,0.00018692,2]
[373887633,1753139449781,-686.62,0.00018692,2]
[373887635,1753139449791,-460.0,0.00018693,2]
[373887637,1753139449800,-794.14,0.00018693,2]
[373887639,1753139449810,-460.0,0.00018693,2]
[373887641,1753139449822,-460.0,0.00018693,2]
[373887643,1753139449831,-460.0,0.00018693,2]
[373887645,1753139449840,-460.0,0.00018693,2]
[373887647,1753139449849,-956.21,0.00018693,2]
[373887649,1753139449860,-460.0,0.00018693,2]
[373887651,1753139449869,-460.0,0.00018693,2]
[373887653,1753139449878,-460.0,0.00018693,2]
[373887655,1753139449887,-460.0,0.00018693,2]
[373887657,1753139449899,-460.0,0.00018693,2]
[373887659,1753139449908,-283.47448943,0.00018693,2]
[373887661,1753139449917,-460.0,0.00018694,2]
[373887663,1753139449926,-460.0,0.00018694,2]
[373887665,1753139449935,-151.0,0.00018694,2]
[373887667,1753139449944,-249.426618,0.00018694,2]
[373887669,1753139449953,-460.0,0.00018694,2]
[373887671,1753139449962,-460.0,0.00018694,2]
[373887673,1753139449971,-460.0,0.00018694,2]
[373887675,1753139449981,-287.421496,0.00018694,2]
[373887677,1753139449990,-287.421496,0.00018694,2]
[373887679,1753139449999,-151.0,0.00018694,2]
[373887681,1753139450009,-460.0,0.00018694,2]
[373887683,1753139450018,-460.0,0.00018694,2]
[373887685,1753139450028,-5403.16,0.00018694,2]
[373887687,1753139450037,-1332.35,0.00018694,2]
[373887698,1753139450128,-151.589671,0.00018711,2]
[373887700,1753139450140,-1928.03,0.00018711,2]
[373887703,1753139450150,-1724.96,0.00018711,2]
[373887705,1753139450159,-935.76,0.00018711,2]
[373887707,1753139450168,-1567.89,0.00018711,2]
[373887709,1753139450177,-3077.94,0.00018711,2]
[373887711,1753139450187,-151.0,0.00018712,2]
[373887713,1753139450195,-152.187848,0.00018712,2]
[373887715,1753139450205,-287.591613,0.00018712,2]
[373887717,1753139450214,-287.591613,0.00018712,2]
[373887719,1753139450223,-151.0,0.00018712,2]
[373887720,1753139450232,-151.0,0.00018712,2]
[373887723,1753139450241,-151.0,0.00018712,2]
[373887724,1753139450250,-167.199311,0.00018712,2]
[373887726,1753139450259,-151.0,0.00018712,2]
[373887728,1753139450269,-2419.85,0.00018712,2]
[373887730,1753139450278,-594.18,0.00018712,2]
[373887733,1753139450287,-151.0,0.00018712,2]
[373887735,1753139450296,-151.0,0.00018712,2]
[373887737,1753139450306,-460.0,0.00018712,2]
[373887739,1753139450315,-1300.4,0.00018712,2]
[373887741,1753139450324,-151.0,0.00018713,2]
[373887743,1753139450333,-151.0,0.00018713,2]
[373887745,1753139450342,-218.210532,0.00018713,2]
[373887747,1753139450351,-151.0,0.00018713,2]
[373887749,1753139450360,-1869.06,0.00018713,2]
[373887751,1753139450369,-460.0,0.00018713,2]
[373887753,1753139450378,-460.0,0.00018713,2]
[373887755,1753139450388,-151.0,0.00018715,2]
[373887757,1753139450397,-151.0,0.00018715,2]
[373887759,1753139450407,-151.0,0.00018715,2]
[373887761,1753139450415,-194.761355,0.00018715,2]
[373887763,1753139450425,-194.761355,0.00018715,2]
[373887765,1753139450435,-156.933266,0.00018716,2]
[373887767,1753139450444,-156.933266,0.00018716,2]
[373887769,1753139450453,-151.0,0.00018716,2]
[373887771,1753139450463,-151.0,0.00018716,2]
[373887773,1753139450471,-151.0,0.00018716,2]
[373887775,1753139450480,-151.0,0.00018716,2]
[373887777,1753139450489,-151.0,0.00018716,2]
[373887779,1753139450498,-151.0,0.00018716,2]
[373887781,1753139450507,-151.0,0.00018716,2]
[373887783,1753139450516,-151.0,0.00018716,2]
[373887785,1753139450526,-152.132934,0.00018717,2]
[373887787,1753139450535,-151.0,0.00018717,2]
[373887789,1753139450544,-151.0,0.00018717,2]
[373887791,1753139450553,-151.0,0.00018717,2]
[373887793,1753139450562,-480.47337901,0.0001872,2]
[373887795,1753139450571,-405.6590285,0.00018721,2]
[373887797,1753139450581,-1039.61585686,0.00018721,2]
[373887799,1753139450590,-350.430541,0.00018744,2]
[373887801,1753139450599,-350.430541,0.00018744,2]
[373887803,1753139450608,-962.0,0.00018759,2]
[373887805,1753139450617,-1531.71617545,0.00018797,2]
[373887807,1753139450627,-156.933266,0.00018798,2]
[373887808,1753139450636,-156.933266,0.00018798,2]
[373887811,1753139450647,-151.0,0.00018798,2]
[373887813,1753139450657,-151.0,0.000188,2]
[373887815,1753139450666,-151.0,0.000188,2]
[373887817,1753139450675,-151.0,0.000188,2]
[373887819,1753139450684,-220.895748,0.00018804,2]
[373887821,1753139450693,-151.0,0.00018849,2]
[373887823,1753139450702,-178.1745678,0.00018849,2]
[373887825,1753139450711,-5484.0,0.00018851,2]
[373887827,1753139450721,-500.0,0.00018859,2]
[373887829,1753139450730,-500.0,0.00018859,2]
[373887831,1753139450739,-500.0,0.00018859,2]
[373887833,1753139450748,-500.0,0.00018859,2]
[373887835,1753139450757,-500.0,0.00018859,2]
[373887837,1753139450767,-222.19880809,0.00018859,2]
[373887839,1753139450776,-460.0,0.00018864,2]
[373887841,1753139450785,-7714.86564251,0.00018866,2]
[373887843,1753139450795,-151.0,0.00018866,2]
[373887845,1753139450804,-287.421496,0.00018866,2]
[373887847,1753139450815,-287.421496,0.00018866,2]
[373887849,1753139450828,-151.0,0.00018877,2]
[373887851,1753139450838,-962.0,0.0001889,2]
[373887853,1753139450847,-151.0,0.00018897,2]
[373887855,1753139450857,-210.383735,0.00018899,2]
[373887857,1753139450866,-210.383735,0.00018899,2]
[373887859,1753139450875,-151.0,0.000189,2]
[373887861,1753139450885,-151.0,0.000189,2]
[373887863,1753139450896,-151.0,0.000189,2]
[373887865,1753139450905,-2087.65578072,0.000189,2]
[373887867,1753139450915,-487.703978,0.00018942,2]
[373887869,1753139450924,-5484.0,0.0001896,2]
[373887871,1753139450934,-3390.2,0.00018964,2]
[373887873,1753139450943,-677.12,0.00018964,2]
[373887875,1753139450953,-460.0,0.00018964,2]
[373887877,1753139450962,-439.18474922,0.00018964,2]
[373887879,1753139450971,-2776.99,0.00018964,2]
[373887881,1753139450980,-460.0,0.00018964,2]
[373887883,1753139450989,-460.0,0.00018964,2]
[373887885,1753139450999,-1434.52,0.00018964,2]
[373887887,1753139451008,-460.0,0.00018964,2]
[373887889,1753139451017,-509.94,0.00018964,2]
[373887891,1753139451027,-460.0,0.00018964,2]
[373887894,1753139451036,-856.14,0.00018964,2]
[373887896,1753139451045,-460.0,0.00018965,2]
[373887898,1753139451054,-460.0,0.00018965,2]
[373887900,1753139451063,-460.0,0.00018965,2]
[373887902,1753139451072,-460.0,0.00018965,2]
[373887904,1753139451081,-460.0,0.00018965,2]
[373887906,1753139451091,-460.0,0.00018965,2]
[373887908,1753139451100,-460.0,0.00018965,2]
[373887910,1753139451109,-555.00201029,0.00018965,2]
[373887911,1753139451119,-151.0,0.00018965,2]
[373887913,1753139451128,-460.0,0.00018965,2]
[373887916,1753139451139,-460.0,0.00018965,2]
[373887917,1753139451148,-5053.42,0.00018965,2]
[373887920,1753139451157,-460.0,0.00018965,2]
[373887922,1753139451166,-460.0,0.00018965,2]
[373887924,1753139451175,-444.56,0.00018965,2]
[373887925,1753139451184,-460.0,0.00018965,2]
[373887927,1753139451193,-460.0,0.00018965,2]
[373887929,1753139451203,-460.0,0.00018965,2]
[373887931,1753139451212,-716.6,0.00018965,2]
[373887934,1753139451221,-460.0,0.00018965,2]
[373887935,1753139451230,-460.0,0.00018965,2]
[373887937,1753139451240,-460.0,0.00018965,2]
[373887939,1753139451249,-475.97,0.00018965,2]
[373887941,1753139451259,-460.0,0.00018965,2]
[373887943,1753139451268,-460.0,0.00018965,2]
[373887946,1753139451277,-2571.87,0.00018965,2]
[373887948,1753139451287,-735.27,0.00018965,2]
[373887949,1753139451296,-460.0,0.00018965,2]
[373887950,1753139451305,-982.68,0.00018965,2]
[373887951,1753139451314,-460.0,0.00018965,2]
[373887952,1753139451323,-558.76022856,0.00018965,2]
[373887953,1753139451333,-460.0,0.00018965,2]
[373887954,1753139451342,-460.0,0.00018965,2]
[373887955,1753139451351,-460.0,0.00018965,2]
[373887956,1753139451360,-811.79,0.00018965,2]
[373887957,1753139451369,-773.27,0.00018965,2]
[373887958,1753139451379,-505.34,0.00018965,2]
[373887959,1753139451389,-460.0,0.00018965,2]
[373887960,1753139451399,-460.0,0.00018965,2]
[373887961,1753139451408,-460.0,0.00018966,2]
[373887963,1753139451418,-460.0,0.00018966,2]
[373887965,1753139451427,-159.228626,0.00018966,2]
[373887967,1753139451436,-159.228626,0.00018966,2]
[373887969,1753139451445,-253.592715,0.00018966,2]
[373887971,1753139451454,-253.592715,0.00018966,2]
[373887973,1753139451464,-151.0,0.00018966,2]
[373887975,1753139451473,-460.0,0.00018966,2]
[373887977,1753139451482,-460.0,0.00018966,2]
[373887979,1753139451492,-460.0,0.00018966,2]
[373887981,1753139451502,-460.0,0.00018966,2]
[373887983,1753139451512,-460.0,0.00018966,2]
[373887985,1753139451521,-460.0,0.00018966,2]
[373887987,1753139451530,-694.46,0.00018966,2]
[373887989,1753139451539,-641.97,0.00018966,2]
[373887991,1753139451547,-1451.97,0.00018966,2]
[373887993,1753139451557,-460.0,0.00018966,2]
[373887995,1753139451566,-460.0,0.00018966,2]
[373887997,1753139451575,-472.94,0.00018966,2]
[373887999,1753139451585,-686.62,0.00018966,2]
[373888001,1753139451594,-460.0,0.00018967,2]
[373888003,1753139451604,-794.14,0.00018967,2]
[373888005,1753139451614,-460.0,0.00018967,2]
[373888007,1753139451624,-460.0,0.00018967,2]
[373888009,1753139451633,-460.0,0.00018967,2]
[373888011,1753139451643,-460.0,0.00018967,2]
[373888013,1753139451652,-956.21,0.00018967,2]
[373888015,1753139451662,-189.64200099,0.00018967,2]
[373888017,1753139451671,-460.0,0.00018967,2]
[373888019,1753139451681,-58.02525603,0.00018967,2]
[373888047,1753139451935,-401.97474397,0.00018967,2]
[373888049,1753139451945,-460.0,0.00018967,2]
[373888051,1753139451954,-460.0,0.00018968,2]
[373888053,1753139451964,-460.0,0.00018968,2]
[373888055,1753139451973,-460.0,0.00018968,2]
[373888057,1753139451982,-460.0,0.00018968,2]
[373888059,1753139451992,-460.0,0.00018968,2]
[373888061,1753139452001,-151.0,0.00018968,2]
[373888063,1753139452010,-235.294537,0.00018968,2]
[373888065,1753139452020,-151.0,0.00018968,2]
[373888067,1753139452029,-151.0,0.00018968,2]
[373888069,1753139452039,-151.0,0.00018968,2]
[373888071,1753139452047,-151.0,0.00018968,2]
[373888073,1753139452056,-460.0,0.00018968,2]
[373888075,1753139452066,-123.66031592,0.00018968,2]
[373888077,1753139452077,-27.33968408,0.00018968,2]
[373888079,1753139452087,-460.0,0.00018968,2]
[373888081,1753139452096,-68.21601583,0.00018968,2]
[373888083,1753139452107,-5334.94398417,0.00018968,2]
[373888085,1753139452116,-151.0,0.00018968,2]
[373888087,1753139452126,-1332.35,0.00018968,2]
[373888089,1753139452135,-151.0,0.00018968,2]
[373888091,1753139452145,-151.0,0.00018968,2]
[373888093,1753139452154,-1505.7834431,0.00018968,2]
[373888095,1753139452164,-1500.0,0.00018968,2]
[373888097,1753139452174,-1500.0,0.00018968,2]
[373888099,1753139452183,-500.0,0.00018968,2]
[373888101,1753139452192,-5484.0,0.00018969,2]
[373888103,1753139452201,-151.0,0.0001897,2]
[373888105,1753139452211,-151.0,0.00018971,2]
[373888107,1753139452220,-234.576232,0.00018971,2]
[373888109,1753139452229,-200.0,0.00018984,2]
[373888111,1753139452239,-151.0,0.00018985,2]
[373888114,1753139452248,-1928.03,0.00018985,2]
[373888116,1753139452258,-1724.96,0.00018985,2]
[373888118,1753139452267,-935.76,0.00018985,2]
[373888120,1753139452276,-1567.89,0.00018985,2]
[373888122,1753139452285,-3077.94,0.00018985,2]
[373888123,1753139452294,-287.591613,0.00018986,2]
[373888125,1753139452304,-287.591613,0.00018986,2]
[373888127,1753139452313,-2419.85,0.00018986,2]
[373888129,1753139452323,-594.18,0.00018986,2]
[373888131,1753139452332,-1300.4,0.00018986,2]
[373888133,1753139452342,-151.0,0.00018987,2]
[373888135,1753139452351,-151.0,0.00018987,2]
[373888137,1753139452360,-151.0,0.00018987,2]
[373888140,1753139452370,-151.0,0.00018987,2]
[373888141,1753139452379,-151.0,0.00018987,2]
[373888143,1753139452389,-1869.06,0.00018987,2]
[373888145,1753139452398,-460.0,0.00018987,2]
[373888147,1753139452407,-277.40630608,0.00018987,2]
[373888150,1753139452419,-182.59369392,0.00018987,2]
[373888152,1753139452429,-151.0,0.00018988,2]
[373888154,1753139452438,-94.38219813,0.00018988,2]
[373888190,1753139452780,-162.049155,0.00017869,2]
[373888192,1753139452790,-1293.62,0.00018691,2]
[373888194,1753139452799,-1293.62,0.00018965,2]
[373888196,1753139452809,-193.03929787,0.00018988,2]
[373888199,1753139452822,-287.421496,0.00018988,2]
[373888201,1753139452831,-151.0,0.00018988,2]
[373888203,1753139452841,-151.0,0.00018989,2]
[373888204,1753139452850,-350.430541,0.0001899,2]
[373888206,1753139452861,-350.430541,0.0001899,2]
[373888208,1753139452871,-151.0,0.0001899,2]
[373888211,1753139452881,-194.761355,0.0001899,2]
[373888213,1753139452893,-194.761355,0.0001899,2]
[373888215,1753139452903,-159.228626,0.0001899,2]
[373888216,1753139452912,-159.228626,0.0001899,2]
[373888218,1753139452922,-253.592715,0.0001899,2]
[373888220,1753139452931,-253.592715,0.0001899,2]
[373888222,1753139452940,-151.0,0.0001899,2]
[373888224,1753139452949,-151.0,0.00018995,2]
[373888226,1753139452958,-5424.84712867,0.00019,20]
[373890336,1753139572827,-150.0,0.00017539,2]
[373890337,1753139572850,-460.0,0.00017768,2]
[373890338,1753139572871,-267.0,0.00017768,2]
[373890339,1753139616337,151.24,0.00024658,60]
[373890341,1753139646129,152.674666,0.00023,30]
[373890342,1753139674520,-150.0,0.0001749,2]
[373890343,1753139674542,-300.0,0.00017669,2]
[373890344,1753139674564,-10000.0,0.0001767,2]
[373890345,1753139674705,-193.0,0.00017768,2]
[373890346,1753139674736,-460.0,0.00017768,2]
[373890347,1753139674756,-460.0,0.00017768,2]
[373890348,1753139674777,-460.0,0.00017768,2]
[373890349,1753139674797,-460.0,0.00017768,2]
[373890350,1753139674818,-460.0,0.00017768,2]
[373890351,1753139674839,-460.0,0.00017768,2]
[373890352,1753139674860,-460.0,0.00017768,2]
[373890353,1753139674884,-460.0,0.00017768,2]
[373890354,1753139674907,-460.0,0.00017768,2]
[373890355,1753139674927,-460.0,0.00017768,2]
[373890356,1753139674950,-460.0,0.00017768,2]
[373890357,1753139674970,-460.0,0.00017768,2]
[373890358,1753139674990,-460.0,0.00017768,2]
[373890359,1753139675011,-460.0,0.00017768,2]
[373890360,1753139675032,-460.0,0.00017768,2]
[373890361,1753139675053,-460.0,0.00017768,2]
[373890362,1753139675076,-460.0,0.00017768,2]
[373890363,1753139675102,-2176.41,0.00017868,2]
[373890364,1753139675124,-555.22,0.00017868,2]
[373890365,1753139675145,-606.67,0.00017868,2]
[373890366,1753139675167,-460.0,0.00017868,2]
[373890367,1753139675188,-476.09,0.00017868,2]
[373890368,1753139675211,-460.0,0.00017868,2]
[373890369,1753139675233,-460.0,0.00017868,2]
[373890370,1753139675255,-797.12,0.00017868,2]
[373890371,1753139675276,-265.62788945,0.00017868,2]
[373890372,1753139675302,-2344.45,0.00017868,2]
[373890373,1753139675324,-460.0,0.00017868,2]
[373890374,1753139675345,-460.0,0.00017868,2]
[373890375,1753139675370,-460.0,0.00017868,2]
[373890376,1753139675394,-460.0,0.00017868,2]
[373890377,1753139675416,-1181.07,0.00017868,2]
[373890378,1753139675440,-460.0,0.00017868,2]
[373890379,1753139675462,-460.0,0.00017868,2]
[373890380,1753139675485,-460.0,0.00017868,2]
[373890381,1753139675507,-460.0,0.00017868,2]
[373890382,1753139675530,-460.0,0.00017868,2]
[373890383,1753139675552,-644.39,0.00017868,2]
[373890384,1753139675574,-460.0,0.00017868,2]
[373890385,1753139675595,-460.0,0.00017868,2]
[373890386,1753139675617,-460.0,0.00017868,2]
[373890387,1753139675637,-460.0,0.00017868,2]
[373890388,1753139675658,-701.1,0.00017868,2]